fUST/lending_fUST_20250713
["ID","MTS","AMOUNT","RATE_DAILY","PERIOD"]
[371718585,1752402641108,-460.0,0.00016712,2]
[371718587,1752402641118,-460.0,0.00016712,2]
[371718589,1752402641127,-460.0,0.00016712,2]
[371718591,1752402641137,-460.0,0.00016712,2]
[371718593,1752402641147,-460.0,0.00016712,2]
[371718595,1752402641156,-710.47,0.00016712,2]
[371718597,1752402641166,-460.0,0.00016712,2]
[371718599,1752402641178,-1051.33,0.00016712,2]
[371718602,1752402641193,-460.0,0.00016712,2]
[371718604,1752402641203,-460.0,0.00016712,2]
[371718606,1752402641214,-460.0,0.00016712,2]
[371718608,1752402641224,-460.0,0.00016712,2]
[371718610,1752402641233,-460.0,0.00016712,2]
[371718612,1752402641242,-460.0,0.00016712,2]
[371718614,1752402641251,-460.0,0.00016712,2]
[371718615,1752402641261,-460.0,0.00016712,2]
[371718618,1752402641271,-583.07267448,0.00016712,2]
[371718620,1752402641280,-460.0,0.00016712,2]
[371718621,1752402641290,-460.0,0.00016712,2]
[371718623,1752402641299,-696.32,0.00016712,2]
[371718626,1752402641308,-418.09352197,0.00016712,2]
[371718628,1752402641318,-460.0,0.00016712,2]
[371718630,1752402641328,-460.0,0.00016712,2]
[371718631,1752402641337,-465.37586871,0.00016712,2]
[371718634,1752402641346,-460.0,0.00016712,2]
[371718636,1752402641356,-460.0,0.00016712,2]
[371718638,1752402641365,-460.0,0.00016712,2]
[371718640,1752402641374,-460.0,0.00016712,2]
[371718642,1752402641384,-460.0,0.00016712,2]
[371718644,1752402641392,-460.0,0.00016712,2]
[371718645,1752402641402,-460.0,0.00016712,2]
[371718648,1752402641411,-174.32,0.00016712,2]
[371718650,1752402641420,-460.0,0.00016712,2]
[371718652,1752402641430,-460.0,0.00016712,2]
[371718654,1752402641439,-460.0,0.00016712,2]
[371718656,1752402641449,-460.0,0.00016712,2]
[371718658,1752402641458,-460.0,0.00016712,2]
[371718660,1752402641467,-460.0,0.00016712,2]
[371718662,1752402641477,-514.41046959,0.00016712,2]
[371718664,1752402641486,-1132.11,0.00016712,2]
[371718666,1752402641495,-503.85,0.00016712,2]
[371718668,1752402641504,-460.0,0.00016712,2]
[371718669,1752402641514,-1332.22,0.00016712,2]
[371718671,1752402641522,-502.81,0.00016712,2]
[371718673,1752402641532,-460.0,0.00016712,2]
[371718675,1752402641543,-460.0,0.00016712,2]
[371718677,1752402641551,-460.0,0.00016712,2]
[371718679,1752402641561,-493.58,0.00016712,2]
[371718682,1752402641571,-460.0,0.00016712,2]
[371718684,1752402641581,-942.93,0.00016712,2]
[371718686,1752402641591,-1592.51,0.00016712,2]
[371718688,1752402641601,-460.0,0.00016712,2]
[371718690,1752402641610,-460.0,0.00016712,2]
[371718692,1752402641619,-460.0,0.00016712,2]
[371718694,1752402641628,-460.0,0.00016712,2]
[371718696,1752402641637,-1878.02,0.00016712,2]
[371718698,1752402641645,-500.0,0.00016773,2]
[371718700,1752402641655,-500.0,0.00016773,2]
[371718701,1752402641664,-151.0,0.00016784,2]
[371718704,1752402641675,-151.0,0.00016886,2]
[371718705,1752402641686,-151.0,0.00016886,2]
[371718708,1752402641695,-460.0,0.00016986,2]
[371718710,1752402641705,-463.58863773,0.00016986,2]
[371718712,1752402641715,-460.0,0.00016986,2]
[371718714,1752402641725,-460.0,0.00016986,2]
[371718716,1752402641735,-460.0,0.00016986,2]
[371718718,1752402641745,-460.0,0.00016986,2]
[371718720,1752402641754,-460.0,0.00016986,2]
[371718722,1752402641764,-460.0,0.00016986,2]
[371718724,1752402641773,-460.0,0.00016986,2]
[371718726,1752402641782,-460.0,0.00016986,2]
[371718728,1752402641791,-460.0,0.00016986,2]
[371718730,1752402641801,-460.0,0.00016986,2]
[371718732,1752402641810,-460.0,0.00016986,2]
[371718734,1752402641821,-460.0,0.00016986,2]
[371718736,1752402641830,-517.92026842,0.00016986,2]
[371718738,1752402641839,-460.0,0.00016986,2]
[371718740,1752402641848,-460.0,0.00016986,2]
[371718742,1752402641857,-460.0,0.00016986,2]
[371718744,1752402641867,-229.27360242,0.00016986,2]
[371718746,1752402641876,-460.0,0.00016986,2]
[371718748,1752402641886,-460.0,0.00016986,2]
[371718750,1752402641895,-460.0,0.00016986,2]
[371718752,1752402641906,-460.0,0.00016986,2]
[371718754,1752402641915,-460.0,0.00016986,2]
[371718756,1752402641925,-460.0,0.00016986,2]
[371718758,1752402641934,-461.9457999,0.00016986,2]
[371718760,1752402641944,-460.0,0.00016986,2]
[371718762,1752402641953,-229.67,0.00016986,2]
[371718764,1752402641962,-460.0,0.00016986,2]
[371718766,1752402641972,-460.0,0.00016986,2]
[371718768,1752402641981,-460.0,0.00016986,2]
[371718770,1752402641991,-460.0,0.00016986,2]
[371718772,1752402642000,-460.0,0.00016986,2]
[371718775,1752402642010,-460.0,0.00016986,2]
[371718777,1752402642020,-460.0,0.00016986,2]
[371718779,1752402642029,-460.0,0.00016986,2]
[371718781,1752402642038,-460.0,0.00016986,2]
[371718783,1752402642048,-225.52257468,0.00016986,2]
[371718785,1752402642058,-460.0,0.00016986,2]
[371718787,1752402642067,-460.0,0.00016986,2]
[371718789,1752402642076,-257.12883024,0.00016986,2]
[371718791,1752402642085,-460.0,0.00016986,2]
[371718793,1752402642094,-460.0,0.00016986,2]
[371718795,1752402642104,-508.12,0.00016986,2]
[371718797,1752402642113,-460.0,0.00016986,2]
[371718798,1752402642123,-710.47,0.00016986,2]
[371718800,1752402642135,-460.0,0.00016986,2]
[371718803,1752402642145,-1051.33,0.00016986,2]
[371718805,1752402642155,-460.0,0.00016986,2]
[371718806,1752402642164,-460.0,0.00016986,2]
[371718809,1752402642173,-460.0,0.00016986,2]
[371718810,1752402642187,-460.0,0.00016986,2]
[371718813,1752402642197,-460.0,0.00016986,2]
[371718815,1752402642207,-460.0,0.00016986,2]
[371718816,1752402642217,-460.0,0.00016986,2]
[371718818,1752402642227,-460.0,0.00016986,2]
[371718820,1752402642239,-696.32,0.00016986,2]
[371718823,1752402642250,-460.0,0.00016986,2]
[371718824,1752402642260,-460.0,0.00016986,2]
[371718826,1752402642270,-460.0,0.00016986,2]
[371718829,1752402642280,-460.0,0.00016986,2]
[371718831,1752402642289,-460.0,0.00016986,2]
[371718833,1752402642300,-460.0,0.00016986,2]
[371718834,1752402642310,-460.0,0.00016986,2]
[371718836,1752402642319,-460.0,0.00016986,2]
[371718838,1752402642330,-460.0,0.00016986,2]
[371718840,1752402642339,-460.0,0.00016986,2]
[371718843,1752402642348,-460.0,0.00016986,2]
[371718845,1752402642358,-460.0,0.00016986,2]
[371718846,1752402642368,-460.0,0.00016986,2]
[371718849,1752402642377,-1132.11,0.00016986,2]
[371718850,1752402642387,-503.85,0.00016986,2]
[371718853,1752402642397,-460.0,0.00016986,2]
[371718855,1752402642406,-1332.22,0.00016986,2]
[371718857,1752402642415,-502.81,0.00016986,2]
[371718859,1752402642424,-460.0,0.00016986,2]
[371718861,1752402642434,-460.0,0.00016986,2]
[371718863,1752402642444,-460.0,0.00016986,2]
[371718864,1752402642454,-493.58,0.00016986,2]
[371718866,1752402642465,-460.0,0.00016986,2]
[371718869,1752402642476,-942.93,0.00016986,2]
[371718870,1752402642485,-1592.51,0.00016986,2]
[371718873,1752402642495,-460.0,0.00016986,2]
[371718874,1752402642504,-460.0,0.00016986,2]
[371718876,1752402642515,-460.0,0.00016986,2]
[371718878,1752402642524,-460.0,0.00016986,2]
[371718880,1752402642535,-1878.02,0.00016986,2]
[371718883,1752402642547,-500.0,0.00017052,2]
[371718885,1752402642556,-504.93958316,0.00017052,2]
[371718887,1752402642565,-500.0,0.00017052,2]
[371718889,1752402642574,-500.0,0.00017052,2]
[371718891,1752402642584,-500.0,0.00017052,2]
[371718893,1752402642594,-500.0,0.00017053,2]
[371718895,1752402642605,-151.0,0.00017058,2]
[371718897,1752402642614,-151.0,0.00017058,2]
[371718898,1752402642623,-500.0,0.00017071,2]
[371718900,1752402642635,-460.0,0.0001726,2]
[371718902,1752402642645,-460.0,0.0001726,2]
[371718904,1752402642656,-460.0,0.0001726,2]
[371718907,1752402642666,-460.0,0.0001726,2]
[371718908,1752402642675,-460.0,0.0001726,2]
[371718911,1752402642685,-460.0,0.0001726,2]
[371718912,1752402642694,-472.64,0.0001726,2]
[371718914,1752402642704,-460.0,0.0001726,2]
[371718916,1752402642713,-460.0,0.0001726,2]
[371718918,1752402642723,-460.0,0.0001726,2]
[371718920,1752402642733,-460.0,0.0001726,2]
[371718923,1752402642744,-460.0,0.0001726,2]
[371718924,1752402642753,-460.0,0.0001726,2]
[371718926,1752402642762,-460.0,0.0001726,2]
[371718929,1752402642772,-460.0,0.0001726,2]
[371718930,1752402642782,-460.0,0.0001726,2]
[371718932,1752402642792,-460.0,0.0001726,2]
[371718935,1752402642802,-460.0,0.0001726,2]
[371718937,1752402642811,-460.0,0.0001726,2]
[371718939,1752402642820,-460.0,0.0001726,2]
[371718940,1752402642830,-460.0,0.0001726,2]
[371718942,1752402642839,-710.47,0.0001726,2]
[371718944,1752402642849,-460.0,0.0001726,2]
[371718946,1752402642858,-1051.33,0.0001726,2]
[371718948,1752402642867,-460.0,0.0001726,2]
[371718950,1752402642877,-460.0,0.0001726,2]
[371718952,1752402642887,-460.0,0.0001726,2]
[371718954,1752402642897,-460.0,0.0001726,2]
[371718956,1752402642907,-460.0,0.0001726,2]
[371718958,1752402642916,-696.32,0.0001726,2]
[371718960,1752402642926,-460.0,0.0001726,2]
[371718963,1752402642935,-460.0,0.0001726,2]
[371718965,1752402642945,-460.0,0.0001726,2]
[371718983,1752402643074,-460.0,0.0001726,2]
[371718985,1752402643084,-460.0,0.0001726,2]
[371718987,1752402643093,-460.0,0.0001726,2]
[371718990,1752402643103,-460.0,0.0001726,2]
[371718993,1752402643111,-460.0,0.0001726,2]
[371718995,1752402643121,-460.0,0.0001726,2]
[371718997,1752402643130,-460.0,0.0001726,2]
[371718999,1752402643139,-460.0,0.0001726,2]
[371719001,1752402643148,-427.48,0.0001726,2]
[371719003,1752402643158,-460.0,0.0001726,2]
[371719005,1752402643167,-1132.11,0.0001726,2]
[371719007,1752402643176,-503.85,0.0001726,2]
[371719009,1752402643189,-460.0,0.0001726,2]
[371719011,1752402643199,-1332.22,0.0001726,2]
[371719013,1752402643209,-502.81,0.0001726,2]
[371719015,1752402643219,-460.0,0.0001726,2]
[371719017,1752402643229,-460.0,0.0001726,2]
[371719019,1752402643239,-460.0,0.0001726,2]
[371719021,1752402643248,-493.58,0.0001726,2]
[371719023,1752402643259,-942.93,0.0001726,2]
[371719025,1752402643269,-460.0,0.0001726,2]
[371719027,1752402643278,-1592.51,0.0001726,2]
[371719029,1752402643288,-460.0,0.0001726,2]
[371719031,1752402643299,-460.0,0.0001726,2]
[371719033,1752402643308,-460.0,0.0001726,2]
[371719035,1752402643318,-460.0,0.0001726,2]
[371719037,1752402643328,-1878.02,0.0001726,2]
[371719039,1752402643337,-756.99765276,0.00017321,2]
[371719041,1752402643347,-578.16123065,0.00017321,2]
[371719042,1752402643357,-151.0,0.00017321,2]
[371719043,1752402643367,-151.0,0.00017321,2]
[371719044,1752402643376,-194.192504,0.00017368,2]
[371719045,1752402643386,-3498.049282,0.00017434,2]
[371719046,1752402643395,-2426.31252001,0.00017434,2]
[371719047,1752402643405,-194.192504,0.00017451,2]
[371719048,1752402643414,-425.59442918,0.00017518,2]
[371719049,1752402643424,-194.192504,0.00017534,2]
[371719050,1752402643434,-460.0,0.00017534,2]
[371719051,1752402643443,-460.0,0.00017534,2]
[371719052,1752402643452,-460.0,0.00017534,2]
[371719053,1752402643462,-460.0,0.00017534,2]
[371719054,1752402643471,-460.0,0.00017534,2]
[371719055,1752402643481,-483.55,0.00017534,2]
[371719056,1752402643491,-212.92219118,0.00017534,2]
[371719058,1752402643500,-460.0,0.00017534,2]
[371719060,1752402643510,-460.0,0.00017534,2]
[371719062,1752402643519,-460.0,0.00017534,2]
[371719064,1752402643528,-460.0,0.00017534,2]
[371719066,1752402643537,-460.0,0.00017534,2]
[371719068,1752402643548,-460.0,0.00017534,2]
[371719070,1752402643557,-460.0,0.00017534,2]
[371719073,1752402643567,-460.0,0.00017534,2]
[371719075,1752402643577,-460.0,0.00017534,2]
[371719077,1752402643586,-460.0,0.00017534,2]
[371719079,1752402643596,-710.47,0.00017534,2]
[371719081,1752402643606,-522.44220023,0.00017534,2]
[371719083,1752402643616,-1051.33,0.00017534,2]
[371719085,1752402643626,-460.0,0.00017534,2]
[371719087,1752402643635,-460.0,0.00017534,2]
[371719090,1752402643646,-460.0,0.00017534,2]
[371719092,1752402643655,-460.0,0.00017534,2]
[371719093,1752402643665,-460.0,0.00017534,2]
[371719096,1752402643676,-696.32,0.00017534,2]
[371719098,1752402643686,-460.0,0.00017534,2]
[371719100,1752402643696,-460.0,0.00017534,2]
[371719102,1752402643705,-460.0,0.00017534,2]
[371719104,1752402643715,-460.0,0.00017534,2]
[371719106,1752402643725,-460.0,0.00017534,2]
[371719108,1752402643734,-460.0,0.00017534,2]
[371719110,1752402643743,-460.0,0.00017534,2]
[371719111,1752402643753,-460.0,0.00017534,2]
[371719113,1752402643762,-460.0,0.00017534,2]
[371719115,1752402643772,-460.0,0.00017534,2]
[371719117,1752402643782,-460.0,0.00017534,2]
[371719120,1752402643792,-460.0,0.00017534,2]
[371719122,1752402643802,-1132.11,0.00017534,2]
[371719124,1752402643812,-503.85,0.00017534,2]
[371719126,1752402643821,-460.0,0.00017534,2]
[371719128,1752402643831,-1332.22,0.00017534,2]
[371719130,1752402643840,-502.81,0.00017534,2]
[371719132,1752402643849,-460.0,0.00017534,2]
[371719134,1752402643859,-460.0,0.00017534,2]
[371719136,1752402643869,-460.0,0.00017534,2]
[371719138,1752402643878,-493.58,0.00017534,2]
[371719140,1752402643888,-942.93,0.00017534,2]
[371719141,1752402643897,-460.0,0.00017534,2]
[371719144,1752402643907,-1592.51,0.00017534,2]
[371719145,1752402643917,-460.0,0.00017534,2]
[371719147,1752402643927,-460.0,0.00017534,2]
[371719149,1752402643936,-460.0,0.00017534,2]
[371719151,1752402643946,-460.0,0.00017534,2]
[371719153,1752402643956,-1878.02,0.00017534,2]
[371719155,1752402643965,-221.46611768,0.00017591,2]
[371719157,1752402643975,-1000.0,0.000176,2]
[371719159,1752402643984,-1000.0,0.000176,2]
[371719161,1752402643994,-1000.0,0.000176,2]
[371719163,1752402644005,-1000.0,0.00017601,2]
[371719165,1752402644015,-194.192504,0.00017617,2]
[371719167,1752402644025,-1000.0,0.00017619,2]
[371719170,1752402644035,-194.192504,0.000177,2]
[371719172,1752402644046,-194.192504,0.00017783,2]
[371719173,1752402644055,-460.0,0.00017808,2]
[371719176,1752402644065,-151.0,0.00017808,2]
[371719178,1752402644074,-460.0,0.00017808,2]
[371719179,1752402644083,-460.0,0.00017808,2]
[371719181,1752402644092,-151.0,0.00017808,2]
[371719183,1752402644102,-460.0,0.00017808,2]
[371719185,1752402644111,-460.0,0.00017808,2]
[371719187,1752402644121,-460.0,0.00017808,2]
[371719189,1752402644131,-460.0,0.00017808,2]
[371719192,1752402644143,-460.0,0.00017808,2]
[371719193,1752402644152,-460.0,0.00017808,2]
[371719196,1752402644162,-460.0,0.00017808,2]
[371719197,1752402644172,-460.0,0.00017808,2]
[371719199,1752402644185,-460.0,0.00017808,2]
[371719202,1752402644196,-460.0,0.00017808,2]
[371719204,1752402644206,-460.0,0.00017808,2]
[371719206,1752402644216,-460.0,0.00017808,2]
[371719208,1752402644227,-710.47,0.00017808,2]
[371719210,1752402644236,-1051.33,0.00017808,2]
[371719212,1752402644245,-460.0,0.00017808,2]
[371719213,1752402644254,-460.0,0.00017808,2]
[371719216,1752402644265,-460.0,0.00017808,2]
[371719217,1752402644276,-460.0,0.00017808,2]
[371719219,1752402644286,-696.32,0.00017808,2]
[371719222,1752402644297,-460.0,0.00017808,2]
[371719224,1752402644307,-460.0,0.00017808,2]
[371719226,1752402644317,-460.0,0.00017808,2]
[371719228,1752402644327,-460.0,0.00017808,2]
[371719230,1752402644336,-460.0,0.00017808,2]
[371719231,1752402644344,-460.0,0.00017808,2]
[371719233,1752402644354,-460.0,0.00017808,2]
[371719235,1752402644363,-460.0,0.00017808,2]
[371719237,1752402644373,-460.0,0.00017808,2]
[371719239,1752402644382,-460.0,0.00017808,2]
[371719241,1752402644392,-460.0,0.00017808,2]
[371719243,1752402644401,-1132.11,0.00017808,2]
[371719245,1752402644412,-503.85,0.00017808,2]
[371719248,1752402644422,-460.0,0.00017808,2]
[371719249,1752402644432,-1332.22,0.00017808,2]
[371719252,1752402644442,-502.81,0.00017808,2]
[371719254,1752402644451,-460.0,0.00017808,2]
[371719256,1752402644461,-460.0,0.00017808,2]
[371719257,1752402644471,-493.58,0.00017808,2]
[371719260,1752402644481,-942.93,0.00017808,2]
[371719262,1752402644490,-460.0,0.00017808,2]
[371719264,1752402644500,-1592.51,0.00017808,2]
[371719266,1752402644509,-460.0,0.00017808,2]
[371719268,1752402644519,-460.0,0.00017808,2]
[371719270,1752402644529,-596.15,0.00017808,2]
[371719272,1752402644539,-460.0,0.00017808,2]
[371719273,1752402644548,-1878.02,0.00017808,2]
[371719275,1752402644557,-194.192504,0.00017866,2]
[371719278,1752402644567,-2705.06158704,0.000179,2]
[371719280,1752402644577,-194.192504,0.00017949,2]
[371719282,1752402644587,-338.0,0.00017963,2]
[371719284,1752402644597,-160.0,0.00017969,2]
[371719286,1752402644607,-160.87458032,0.00017981,2]
[371719288,1752402644616,-503.24985721,0.00017981,2]
[371719290,1752402644625,-24268.4847128,0.00017982,2]
[371719292,1752402644635,-194.192504,0.00018032,2]
[371719294,1752402644644,-460.0,0.00018082,2]
[371719296,1752402644653,-460.0,0.00018082,2]
[371719298,1752402644663,-460.0,0.00018082,2]
[371719300,1752402644675,-460.0,0.00018082,2]
[371719301,1752402644684,-558.4478463,0.00018082,2]
[371719303,1752402644694,-460.0,0.00018082,2]
[371719306,1752402644704,-460.0,0.00018082,2]
[371719308,1752402644715,-460.0,0.00018082,2]
[371719310,1752402644724,-460.0,0.00018082,2]
[371719311,1752402644735,-460.0,0.00018082,2]
[371719313,1752402644744,-460.0,0.00018082,2]
[371719316,1752402644755,-710.47,0.00018082,2]
[371719318,1752402644766,-1051.33,0.00018082,2]
[371719320,1752402644776,-460.0,0.00018082,2]
[371719322,1752402644785,-460.0,0.00018082,2]
[371719324,1752402644796,-460.0,0.00018082,2]
[371719326,1752402644805,-460.0,0.00018082,2]
[371719328,1752402644815,-696.32,0.00018082,2]
[371719330,1752402644825,-460.0,0.00018082,2]
[371719332,1752402644834,-460.0,0.00018082,2]
[371719334,1752402644844,-460.0,0.00018082,2]
[371719336,1752402644854,-567.8,0.00018082,2]
[371719338,1752402644863,-460.0,0.00018082,2]
[371719340,1752402644873,-460.0,0.00018082,2]
[371719342,1752402644882,-460.0,0.00018082,2]
[371719344,1752402644891,-460.0,0.00018082,2]
[371719346,1752402644901,-460.0,0.00018082,2]
[371719348,1752402644910,-1132.11,0.00018082,2]
[371719349,1752402644919,-503.85,0.00018082,2]
[371719352,1752402644929,-460.0,0.00018082,2]
[371719354,1752402644939,-1332.22,0.00018082,2]
[371719356,1752402644948,-502.81,0.00018082,2]
[371719358,1752402644958,-460.0,0.00018082,2]
[371719360,1752402644968,-460.0,0.00018082,2]
[371719362,1752402644977,-493.58,0.00018082,2]
[371719364,1752402644987,-942.93,0.00018082,2]
[371719365,1752402644996,-460.0,0.00018082,2]
[371719368,1752402645007,-1592.51,0.00018082,2]
[371719370,1752402645016,-460.0,0.00018082,2]
[371719371,1752402645026,-460.0,0.00018082,2]
[371719374,1752402645036,-460.0,0.00018082,2]
[371719376,1752402645047,-1878.02,0.00018082,2]
[371719377,1752402645057,-194.192504,0.00018115,2]
[371719379,1752402645068,-151.0,0.00018141,2]
[371719382,1752402645080,-151.0,0.00018141,2]
[371719384,1752402645089,-1500.0,0.00018148,2]
[371719385,1752402645100,-1500.0,0.00018148,2]
[371719387,1752402645110,-442.2902244,0.00018149,2]
[371719390,1752402645120,-510.08387321,0.00018167,2]
[371719392,1752402645129,-2705.0615869,0.00018176,2]
[371719394,1752402645138,-194.192504,0.00018198,2]
[371719395,1752402645148,-194.192504,0.00018282,2]
[371719398,1752402645159,-151.0,0.00018356,2]
[371719400,1752402645168,-265.931367,0.00018356,2]
[371719402,1752402645178,-265.931367,0.00018356,2]
[371719404,1752402645191,-460.0,0.00018356,2]
[371719406,1752402645201,-460.0,0.00018356,2]
[371719408,1752402645210,-460.0,0.00018356,2]
[371719410,1752402645219,-460.0,0.00018356,2]
[371719412,1752402645231,-460.0,0.00018356,2]
[371719414,1752402645241,-460.0,0.00018356,2]
[371719416,1752402645250,-460.0,0.00018356,2]
[371719418,1752402645260,-460.0,0.00018356,2]
[371719420,1752402645269,-460.0,0.00018356,2]
[371719422,1752402645279,-710.47,0.00018356,2]
[371719424,1752402645289,-1051.33,0.00018356,2]
[371719425,1752402645299,-460.0,0.00018356,2]
[371719427,1752402645308,-416.58349346,0.00018356,2]
[371719429,1752402645318,-460.0,0.00018356,2]
[371719431,1752402645327,-696.32,0.00018356,2]
[371719433,1752402645337,-460.0,0.00018356,2]
[371719435,1752402645347,-460.0,0.00018356,2]
[371719437,1752402645356,-460.0,0.00018356,2]
[371719439,1752402645365,-476.65,0.00018356,2]
[371719441,1752402645375,-460.0,0.00018356,2]
[371719443,1752402645384,-460.0,0.00018356,2]
[371719445,1752402645394,-460.0,0.00018356,2]
[371719447,1752402645403,-460.0,0.00018356,2]
[371719449,1752402645413,-1132.11,0.00018356,2]
[371719451,1752402645422,-503.85,0.00018356,2]
[371719453,1752402645431,-460.0,0.00018356,2]
[371719455,1752402645441,-1332.22,0.00018356,2]
[371719457,1752402645451,-502.81,0.00018356,2]
[371719460,1752402645460,-460.0,0.00018356,2]
[371719464,1752402645497,-460.0,0.00018356,2]
[371719466,1752402645507,-493.58,0.00018356,2]
[371719469,1752402645517,-942.93,0.00018356,2]
[371719471,1752402645527,-460.0,0.00018356,2]
[371719472,1752402645536,-460.0,0.00018356,2]
[371719475,1752402645547,-1592.51,0.00018356,2]
[371719477,1752402645556,-460.0,0.00018356,2]
[371719479,1752402645565,-1878.02,0.00018356,2]
[371719481,1752402645574,-194.192504,0.00018365,2]
[371719483,1752402645584,-160.0,0.00018391,2]
[371719484,1752402645595,-230.68503973,0.00018391,2]
[371719486,1752402645606,-214.29528141,0.00018391,2]
[371719488,1752402645615,-160.0,0.00018391,2]
[371719490,1752402645624,-215.42595214,0.00018391,2]
[371719492,1752402645633,-838.53376533,0.00018391,2]
[371719494,1752402645642,-836.956561,0.00018392,2]
[371719496,1752402645651,-160.0,0.00018392,2]
[371719498,1752402645660,-160.0,0.00018392,2]
[371719500,1752402645670,-160.0,0.00018392,2]
[371719502,1752402645679,-160.0,0.00018392,2]
[371719504,1752402645689,-160.0,0.00018392,2]
[371719506,1752402645699,-194.192504,0.00018448,2]
[371719508,1752402645709,-2705.0615869,0.00018452,2]
[371719510,1752402645718,-260.0,0.00018517,2]
[371719512,1752402645728,-194.192504,0.00018531,2]
[371719514,1752402645737,-194.192504,0.00018614,2]
[371719516,1752402645747,-460.0,0.0001863,2]
[371719518,1752402645756,-460.0,0.0001863,2]
[371719520,1752402645765,-460.0,0.0001863,2]
[371719522,1752402645775,-460.0,0.0001863,2]
[371719524,1752402645785,-460.0,0.0001863,2]
[371719526,1752402645794,-460.0,0.0001863,2]
[371719528,1752402645804,-460.0,0.0001863,2]
[371719530,1752402645813,-460.0,0.0001863,2]
[371719532,1752402645822,-710.47,0.0001863,2]
[371719534,1752402645832,-1051.33,0.0001863,2]
[371719536,1752402645841,-460.0,0.0001863,2]
[371719538,1752402645850,-460.0,0.0001863,2]
[371719540,1752402645860,-696.32,0.0001863,2]
[371719542,1752402645870,-460.0,0.0001863,2]
[371719544,1752402645879,-460.0,0.0001863,2]
[371719546,1752402645889,-460.0,0.0001863,2]
[371719548,1752402645898,-460.0,0.0001863,2]
[371719549,1752402645907,-460.0,0.0001863,2]
[371719550,1752402645916,-186.77766755,0.0001863,2]
[371719551,1752402645925,-1132.11,0.0001863,2]
[371719552,1752402645935,-503.85,0.0001863,2]
[371719553,1752402645944,-352.18,0.0001863,2]
[371719556,1752402645954,-1332.22,0.0001863,2]
[371719557,1752402645963,-502.81,0.0001863,2]
[371719559,1752402645973,-460.0,0.0001863,2]
[371719561,1752402645983,-460.0,0.0001863,2]
[371719564,1752402645993,-493.58,0.0001863,2]
[371719566,1752402646003,-942.93,0.0001863,2]
[371719568,1752402646012,-460.0,0.0001863,2]
[371719570,1752402646022,-460.0,0.0001863,2]
[371719572,1752402646031,-1592.51,0.0001863,2]
[371719574,1752402646041,-460.0,0.0001863,2]
[371719576,1752402646051,-1878.02,0.0001863,2]
[371719578,1752402646061,-1500.0,0.00018696,2]
[371719580,1752402646070,-306.48796736,0.00018696,2]
[371719582,1752402646080,-194.192504,0.00018697,2]
[371719584,1752402646090,-2705.0615869,0.00018728,2]
[371719587,1752402646099,-194.192504,0.0001878,2]
[371719590,1752402646109,-152.056827,0.000188,2]